Workbook

Sheet 0005
AJ1: 事業番号 | AS1: =IF(OR(AQ1=" ", AQ1=""), "", "-") ->  | AT1: 5
A2: 29 | AI2: （ | AJ2: 人事院 | AX2: ）
A3: 事業名 | G3: 公平審査 | Y3: 担当部局庁 | AE3: 公平審査局 | AQ3: 作成責任者
A4: 事業開始年度 | G4: 昭和２４年度 | M4: 事業終了 （予定）年度 | S4: 終了予定なし | Y4: 担当課室 | AE4: 調整課 | AQ4: 課長 奥村 穣
A5: 会計区分 | G5: 一般会計
A6: 根拠法令 （具体的な 条項も記載） | G6: 国家公務員法第86条、87条、88条、89条、90条、90条の２、91条、92条、92条の2 国家公務員災害補償法第24条、25条 一般職の職員の給与に関する法律第21条 人事院規則13-１、13-2、13-3、13-4 | Y6: 関係する計画、通知等 | AE6: －
A7: 主要政策・施策 | G7: － | Y7: 主要経費 | AE7: その他の事項経費
A8: 事業の目的 （目指す姿を簡潔に。3行程度以内） | G8: 不利益処分についての審査請求、勤務条件に関する行政措置の要求、災害補償の実施に関する審査の申立て等及び給与の決定に関する審査の申立てが人事院に対してなされた場合に、それぞれ所定の審査手続に従って、できる限り迅速かつ適切に事案の処理を行う。
A9: 事業概要 （5行程度以内。別添可） | G9: 公平審査においては、各審査制度の審査方法・手続に従って公平委員、調査員等ができるだけ迅速かつ適切に事案の処理に取り組み、審理や事実調査、必要に応じた証人尋問などを本院及び地方で実施し、その後判定を作成し発出する。災害補償審査の申立てに関しては、それぞれ個別の事案の調査に当たって医学的な証拠の収集や主治医からの意見聴取を行うとともに、専門の委員から意見を聴取した上で判定を作成し発出する。また、救済機能の充実、強化を図るため学識経験者等から意見聴取を実施し、制度の整備等を図っている。
A10: 実施方法 | G10: 直接実施
A11: 予算額・ 執行額 （単位:百万円） | P11: =W11-1 -> 26 | W11: =AD11-1 -> 27 | AD11: =AK11-1 -> 28 | AK11: =A2 -> 29 | AR11: =AK11+1 -> 30
G12: 予算の状況 | I12: 当初予算 | P12: 13 | W12: 16 | AD12: 11 | AK12: 10 | AR12: 9
I13: 補正予算 | P13: 0 | W13: 0 | AD13: 0
I14: 前年度から繰越し | P14: 0 | W14: 0 | AD14: 0 | AK14: 0
I15: 翌年度へ繰越し | P15: 0 | W15: 0 | AD15: 0
I16: 予備費等 | P16: 0 | W16: 0 | AD16: 0
I17: 計 | P17: =SUM(P12:V16) -> 13 | W17: =SUM(W12:AC16) -> 16 | AD17: =SUM(AD12:AJ16) -> 11 | AK17: =SUM(AK12:AQ16) -> 10 | AR17: =SUM(AR12:AX16) -> 9
G18: 執行額 | P18: 10 | W18: 13 | AD18: 6
G19: 執行率（％） | P19: =P18/P17 -> 0.7692307692 | W19: =W18/W17 -> 0.8125 | AD19: =AD18/AD17 -> 0.5454545455
G20: 当初予算＋補正予算に対する執行額の割合（％） | P20: =P18/SUM(P12:V13) -> 0.7692307692 | W20: =W18/SUM(W12:AC13) -> 0.8125 | AD20: =AD18/SUM(AD12:AJ13) -> 0.5454545455
A21: 平成29・30年度 予算内訳 （単位：百万円） | G21: 歳出予算日 | P21: =AK11 -> 29 | W21: =P21+1 -> 30 | AD21: 主な増減理由
G22: 職員旅費 | P22: 4.847 | W22: 4 | AD22: 審理や実地調査等の実績を踏まえた減
G23: 諸謝金 | P23: 2.59 | W23: 2.3
G24: 庁費 | P24: 2.269 | W24: 2.2
G25: 情報処理業務庁費 | P25: 0.356 | W25: 0.4
G26: 講師等旅費 | P26: 0.039 | W26: 0.04
G27: 証人等旅費 | P27: 0.021 | W27: 0.02
G28: 計 | P28: =AK12 -> 10 | W28: =AR12 -> 9
A29: 成果目標及び 成果実績 （アウトカム） | G29: 定量的な成果目標 | P29: 成果指標 | AB29: 単位 | AE29: =AI29-1 -> 26 | AI29: =AM29-1 -> 27 | AM29: =P21-1 -> 28 | AQ29: 中間目標 | AU29: 目標最終年度
AQ30: - | AS30: 年度 | AU30: - | AW30: 年度
G31: 全判定発出件数に占める結審等から5か月以内に判定等を行った件数の割合を80％以上にする。 | P31: 全判定件数に占める結審等から５か月以内に判定等を行った件数の割合 | Y31: 成果実績 | AB31: ％ | AE31: 81.7 | AI31: 53 | AM31: 97 | AQ31: - | AU31: -
Y32: 目標値 | AB32: ％ | AE32: 80 | AI32: 80 | AM32: 80 | AQ32: - | AU32: -
Y33: 達成度 | AB33: ％ | AE33: =AE31/AE32*100 -> 102.125 | AI33: =AI31/AI32*100 -> 66.25 | AM33: =AM31/AM32*100 -> 121.25 | AQ33: - | AU33: -
G34: 不利益処分審査請求事案について、受付から１年以内に処理した件数の割合を75％以上にする。 | P34: 不利益処分審査請求事案の全処理件数に占める受付から１年以内に処理した件数の割合 | Y34: 成果実績 | AB34: ％ | AE34: 35.7 | AI34: 75 | AM34: 83.3 | AQ34: - | AU34: -
Y35: 目標値 | AB35: ％ | AE35: 75 | AI35: 75 | AM35: 75 | AQ35: - | AU35: -
Y36: 達成度 | AB36: ％ | AE36: =AE34/AE35*100 -> 47.6 | AI36: =AI34/AI35*100 -> 100 | AM36: =AM34/AM35*100 -> 111.0666667 | AQ36: - | AU36: -
A37: 横断的な施策に係る成果目標及び成果実績 （アウトカム） | H37: 定量的な成果目標 | P37: 成果指標 | AB37: 単位 | AE37: 25年度 | AI37: 26年度 | AM37: 27年度 | AQ37: 中間目標 | AU37: 目標最終年度
AS38: 年度 | AW38: 年度
G39: 目標・指標 | Y39: 成果実績
Y40: 目標値
Y41: 達成度 | AB41: ％
A42: ●● | E42: 関係 | G42: 算出方法
A43: 根拠として用いた 統計・データ名 （出典） | G43: 平成28年度人事院政策評価結果
A44: 成果目標及び成果実績（アウトカム）欄についてさらに記載が必要な場合はチェックの上【別紙１】に記載
A45: 定量的な成果目標の設定が困難な場合 | B45: 定量的な目標が設定できない理由及び定性的な成果目標 | G45: 定量的な目標が設定できない理由 | AB45: 定性的な成果目標と26～28年度の達成状況・実績
B50: 事業の妥当性を検証するための代替的な達成目標及び実績 | G50: 代替目標 | P50: 代替指標 | AB50: 単位 | AE50: =AE29 -> 26 | AI50: =AI29 -> 27 | AM50: =AM29 -> 28 | AQ50: 中間目標 | AU50: 目標最終年度
AS51: 年度 | AW51: 年度
Y52: 実績
Y53: 目標値
Y54: 達成度 | AB54: ％
A55: 活動指標及び 活動実績 （アウトプット） | G55: 活動指標 | AB55: 単位 | AE55: =AE50 -> 26 | AI55: =AI50 -> 27 | AM55: =AM50 -> 28 | AQ55: =AM55+1 -> 29 | AU55: =AQ55+1 -> 30
G56: 処理件数（判定の件数。括弧内は取下げ・却下等を含む件数。） | Y56: 活動実績 | AB56: 件 | AE56: 71(95) | AI56: 80(101) | AM56: 35(47) | AQ56: - | AU56: -
Y57: 当初見込み | AB57: 件 | AE57: - | AI57: - | AM57: - | AQ57: - | AU57: -
A58: 単位当たり コスト | G58: 算出根拠 | AB58: 単位 | AE58: =AE55 -> 26 | AI58: =AI55 -> 27 | AM58: =AM55 -> 28 | AQ58: =AQ55 -> 29
G59: 執行額／処理件数 | Y59: 単位当たり コスト | AB59: 万円 | AE59: =1000/71 -> 14.08450704 | AI59: =1300/80 -> 16.25 | AM59: =600/35 -> 17.14285714 | AQ59: -
Y60: 計算式 | AB60: 万円／件 | AE60: 1,000/71 | AI60: 1,300/80 | AM60: 600/35 | AQ60: -
A61: 政策評価、経済・財政再生アクション・プログラムとの関係 | C61: 政策評価 | E61: 政策
E62: 施策
E63: 測定指標 | G63: 定量的指標 | AB63: 単位 | AE63: 25年度 | AI63: 26年度 | AM63: 27年度 | AQ63: 中間目標 | AU63: 目標年度
AS64: 年度 | AW64: 年度
Y65: 実績値
Y66: 目標値
G67: 定性的指標 | Y67: 目標 | AE67: 施策の進捗状況（目標）
AB68: 目標年度
AE71: 施策の進捗状況（実績）
E74: 本事業の成果と上位施策・測定指標との関係
C77: 経済・財政再生 アクション・プログラム | E77: 改革項目 | G77: 分野：
E78: KPI (第一階層） | G78: ＫＰＩ （第一階層） | AB78: 単位 | AE78: 計画開始時 | AI78: 27年度 | AM78: 28年度 | AQ78: 中間目標 | AU78: 目標最終年度
AG79: 年度 | AS79: 年度 | AW79: 年度
Y80: 成果実績
Y81: 目標値
Y82: 達成度 | AB82: ％
E83: KPI (第二階層） | G83: ＫＰＩ （第二階層） | AB83: 単位 | AE83: 計画開始時 | AI83: 27年度 | AM83: 28年度 | AQ83: 中間目標 | AU83: 目標最終年度
AG84: 年度 | AS84: 年度 | AW84: 年度
Y85: 成果実績
Y86: 目標値
Y87: 達成度 | AB87: ％
E88: 本事業の成果と改革項目・KPIとの関係
A91: 事業所管部局による点検・改善
C92: 項 目 | AD92: 評 価 | AG92: 評価に関する説明
A93: 国費投入の必要性 | C93: 事業の目的は国民や社会のニーズを的確に反映しているか。 | AD93: ○ | AG93: 公平審査制度は、第三者機関である人事院が、行政部内の準司法的機関としての立場から実施するものであり、職員の利益保護、公務の能率的な運営の確保のために不可欠である。
C94: 地方自治体、民間等に委ねることができない事業なのか。 | AD94: ○
C95: 政策目的の達成手段として必要かつ適切な事業か。政策体系の中で優先度の高い事業か。 | AD95: ○
A96: 事業の効率性 | C96: 競争性が確保されているなど支出先の選定は妥当か。 | AD96: ○ | AG96: 随意契約については、少額のもののみであり、必要に応じ見積り合わせを行ったうえでの契約となっている。 平成28年度についても迅速かつ適切な苦情の処理を目指して処理を進めたところであり、事案数の減少などにより執行額が減少したため、不要額が発生した。 一方、審理会場については人事院の地方事務局で確保できる合同庁舎の会議室の使用に努めたり、安価な施設を借用することによって、会場借料を節減した。
E97: 一般競争入札、総合評価入札又は随意契約（企画競争）による支出のうち、一者応札又は一者応募となったものはないか。 | AD97: 無
E98: 競争性のない随意契約となったものはないか。 | AD98: 無
C99: 受益者との負担関係は妥当であるか。 | AD99: ○
C100: 単位当たりコスト等の水準は妥当か。 | AD100: ○
C101: 資金の流れの中間段階での支出は合理的なものとなっているか。 | AD101: ○
C102: 費目・使途が事業目的に即し真に必要なものに限定されているか。 | AD102: ○
C103: 不用率が大きい場合、その理由は妥当か。（理由を右に記載） | AD103: △
C104: 繰越額が大きい場合、その理由は妥当か。（理由を右に記載） | AD104: -
C105: その他コスト削減や効率化に向けた工夫は行われているか。 | AD105: ○
A106: 事業の有効性 | C106: 成果実績は成果目標に見合ったものとなっているか。 | AD106: ○ | AG106: 結審等から5か月以内の判定発出は、97.1％と目標（80%以上）を大幅に上回る達成をした。
C107: 事業実施に当たって他の手段・方法等が考えられる場合、それと比較してより効果的あるいは低コストで実施できているか。 | AD107: ‐
C108: 活動実績は見込みに見合ったものであるか。 | AD108: ‐
C109: 整備された施設や成果物は十分に活用されているか。 | AD109: ‐
A110: 関連事業 | C110: 関連する事業がある場合、他部局・他府省等と適切な役割分担を行っているか。（役割分担の具体的な内容を各事業の右に記載）
C111: 所管府省・部局名 | P111: 事業番号 | T111: 事業名
A117: 点検・改善結果 | C117: 点検結果 | G117: 公平審査制度は、職員の利益保護、人事行政の公正の確保、ひいては公務の能率的な運営の確保のための手続として迅速かつ適切な事案の処理が求められており、複雑困難な事案が増加しているなか、手続面での効率化を進め、事案の早期処理に取り組んでいる。申請数や内容等についてはあらかじめ把握できるものではなく、今後も申請の状況に的確に対応していく必要があることから、大幅な経費の削減は難しいと考えるが、引き続き必要な見直しは行っていく。
C118: 改善の 方向性 | G118: 今後も各事案処理について合理化を図り、経費の削減に努めることとする。平成30年度予算概算要求に当たっては、近年の執行実態を考慮して、諸謝金、職員旅費について見直しを図ることとする。
A119: 外部有識者の所見
A120: ※ 外部有識者による点検の対象外の事業
A121: 行政事業レビュー・調達改善推進チームの所見
A122: 事業内容の 一部改善 | F122: 審理等の実施に係る諸謝金及び職員旅費について、近年の執行実績等を踏まえて削減の余地がないかどうか精査して、その結果を平成30年度予算概算要求に反映させること。
A123: 所見を踏まえた改善点/概算要求における反映状況
A124: 縮減 | F124: 審理等の実施に係る経費について、近年の執行実績を踏まえ、委員謝金及び実地調査等に係る旅費についての要求額を減額する。
A125: 備考
A127: 関連する過去のレビューシートの事業番号
A128: =Q128-1 -> 22 | G128: － | Q128: =AG128-1 -> 23 | W128: － | AG128: =A129-1 -> 24 | AM128: －
A129: =Q129-1 -> 25 | G129: 5 | Q129: =AG129-1 -> 26 | W129: 5 | AG129: =A130-1 -> 27 | AM129: 5
A130: =AM58 -> 28 | G130: 5
A131: 資金の流れ （資金の受け取り先が何を行っているかについて補足する） (単位：百万円) | G131: =A130 -> 28
AF133: 【一般競争入札等】
AG134: Ａ． （株）会議録研究所ほか 1.2百万円
AF135: （審理記録の音声データ反訳、主治医の意見聴取料及び診療録の複写料等） 費途：雑役務費
AF136: 【随意契約（少額）】
I137: 人事院 6百万円 | AG137: Ｂ． 長崎市市民会館ほか 0.06百万円
AF138: （公平審査の実施に係る会場借料）費途：借料及び損料
AF139: 【諸謝金】
AG140: Ｃ． 個人 0.8百万円
AF141: （災害補償審査事案に係る委員謝金等）
AF142: 【随意契約（少額）】
AG143: Ｄ． （株）大塚商会 0.4百万円
AF144: （判定検索データベースの更改）費途：雑役務費
AG146: Ｅ． 事務費 3.1百万円
AF147: （公平審査の実施に係る旅費）
H148: 【本院から予算配分】 | AF148: 【随意契約（少額）】
I149: 地方事務局 0.07百万円 | AG149: Ｆ． （公財）石川県文教会館 0.03百万円
AF150: （公平審査の実施に係る会場借料）費途：借料及び損料
AG152: Ｇ． 事務費 0.04百万円
AF153: （公平審査の実施に係る旅費）
A167: 費目・使途 （「資金の流れ」においてブロックごとに最大の金額が支出されている者について記載する。費目と使途の双方で実情が分かるように記載） | G167: A.会議録研究所 | AC167: B.
G168: 費 目 | L168: 使 途 | Y168: 金 額 (百万円） | AC168: 費 目 | AH168: 使 途 | AU168: 金 額 (百万円）
G169: 雑役務費 | L169: 音声データ反訳経費 | Y169: 1
G179: 計 | Y179: =SUM(Y169:AB178) -> 1 | AC179: 計 | AU179: =SUM(AU169:AX178) -> 0
G180: C. | AC180: D.
G181: 費 目 | L181: 使 途 | Y181: 金 額 (百万円） | AC181: 費 目 | AH181: 使 途 | AU181: 金 額 (百万円）
G192: 計 | Y192: =SUM(Y182:AB191) -> 0 | AC192: 計 | AU192: =SUM(AU182:AX191) -> 0
G193: E. | AC193: F.
G194: 費 目 | L194: 使 途 | Y194: 金 額 (百万円） | AC194: 費 目 | AH194: 使 途 | AU194: 金 額 (百万円）
G205: 計 | AC205: 計 | AU205: =SUM(AU195:AX204) -> 0
G206: G.
G207: 費 目 | L207: 使 途 | Y207: 金 額 (百万円） | AC207: 費 目 | AH207: 使 途 | AU207: 金 額 (百万円）
G218: 計 | Y218: =SUM(Y208:AB217) -> 0 | AC218: 計 | AU218: =SUM(AU208:AX217) -> 0
A219: 費目・使途欄についてさらに記載が必要な場合はチェックの上【別紙２】に記載
B222: 支出先上位１０者リスト
B223: A.
C224: 支 出 先 | J224: 法 人 番 号 | P224: 業 務 概 要 | Y224: 支 出 額 （百万円） | AC224: 契約方式 | AH224: 入札者数 （応募者数） | AL224: 落札率 | AP224: 一者応札・一者応募又は 競争性のない随意契約となった 理由及び改善策 （支出額10億円以上）
A225: 1 | B225: 1 | C225: （株）会議録研究所 | J225: 6011101004370 | P225: 審理記録の音声データ反訳作業 | Y225: 1 | AC225: 一般競争契約 （最低価格） | AH225: 2
A226: 2 | B226: 1 | C226: A病院 | P226: 診療録複写料 | Y226: 0.024 | AC226: 随意契約 （その他）
A227: 3 | B227: 1 | C227: Ｂ医療センター | P227: 主治医意見聴取料 | Y227: 0.017 | AC227: 随意契約 （その他）
A228: 4 | B228: 1 | C228: Ｃ病院 | P228: 主治医意見聴取料 | Y228: 0.011 | AC228: 随意契約 （その他）
A229: 5 | B229: 1 | C229: Ｄ病院 | P229: 主治医意見聴取料 | Y229: 0.011 | AC229: 随意契約 （その他）
A230: 6 | B230: 1 | C230: Ｅ病院 | P230: 主治医意見聴取料 | Y230: 0.011 | AC230: 随意契約 （その他）
A231: 7 | B231: 1 | C231: Ｆ病院 | P231: 主治医意見聴取料 | Y231: 0.011 | AC231: 随意契約 （その他）
A232: 8 | B232: 1 | C232: Ｇ医療センター | P232: 診療録複写料 | Y232: 0.011 | AC232: 随意契約 （その他）
A233: 9 | B233: 1 | C233: 日本職業・災害医学会 | J233: 9020005010067 | P233: 年会費 | Y233: 0.01 | AC233: 随意契約 （その他）
A234: 10 | B234: 1 | C234: Ｈクリニック | P234: 主治医意見聴取料 | Y234: 0.007 | AC234: 随意契約 （その他）
B236: B.
C237: 支 出 先 | J237: 法 人 番 号 | P237: 業 務 概 要 | Y237: 支 出 額 （百万円） | AC237: 契約方式 | AH237: 入札者数 （応募者数） | AL237: 落札率 | AP237: 一者応札・一者応募又は 競争性のない随意契約となった 理由及び改善策 （支出額10億円以上）
A238: 1 | B238: 1 | C238: 長崎市民会館 | P238: 災害補償審査申立事案の調査に係る会場借料 | Y238: 0.05 | AC238: 随意契約 （少額）
A239: 2 | B239: 1 | C239: 網走市民会館 | P239: 災害補償審査申立事案の調査に係る会場借料 | Y239: 0.003 | AC239: 随意契約 （少額）
A240: 3 | B240: 1 | C240: 熊本市国際交流会館 | P240: 災害補償審査申立事案の調査に係る会場借料 | Y240: 0.002 | AC240: 随意契約 （少額）
A241: 4 | B241: 1 | C241: 旭川勤労者福祉会館 | P241: 災害補償審査申立事案の調査に係る会場借料 | Y241: 0.002 | AC241: 随意契約 （少額）
A242: 5 | B242: 1 | C242: 南宇治コミュニティーセンター | P242: 災害補償審査申立事案の調査に係る会場借料 | Y242: 0.001 | AC242: 随意契約 （少額）
A243: 6 | B243: 1
A244: 7 | B244: 1
A245: 8 | B245: 1
A246: 9 | B246: 1
A247: 10 | B247: 1
B249: C.
C250: 支 出 先 | J250: 法 人 番 号 | P250: 業 務 概 要 | Y250: 支 出 額 （百万円） | AC250: 契約方式 | AH250: 入札者数 （応募者数） | AL250: 落札率 | AP250: 一者応札・一者応募又は 競争性のない随意契約となった 理由及び改善策 （支出額10億円以上）
A251: 1 | B251: 1 | C251: 個人Ａ | P251: 災害補償審査事案に係る委員謝金 | Y251: 0.19 | AC251: （諸謝金）
A252: 2 | B252: 1 | C252: 個人Ｂ | P252: 災害補償審査事案に係る委員謝金 | Y252: 0.19 | AC252: （諸謝金）
A253: 3 | B253: 1 | C253: 個人Ｃ | P253: 災害補償審査事案に係る委員謝金 | Y253: 0.16 | AC253: （諸謝金）
A254: 4 | B254: 1 | C254: 個人Ｄ | P254: 災害補償審査事案に係る委員謝金 | Y254: 0.16 | AC254: （諸謝金）
A255: 5 | B255: 1 | C255: 個人Ｅ | P255: 災害補償審査事案に係る意見聴取謝金 | Y255: 0.08 | AC255: （諸謝金）
A256: 6 | B256: 1 | C256: 個人Ｆ | P256: 災害補償審査事案に係る意見聴取謝金 | Y256: 0.04 | AC256: （諸謝金）
A257: 7 | B257: 1 | C257: 個人Ｇ | P257: 災害補償審査事案に係る意見聴取謝金 | Y257: 0.01 | AC257: （諸謝金）
A258: 8 | B258: 1 | C258: 個人Ｈ | P258: 不利益処分審査事案に係る意見聴取謝金 | Y258: 0.005 | AC258: （諸謝金）
A259: 9 | B259: 1
A260: 10 | B260: 1
B262: D.
C263: 支 出 先 | J263: 法 人 番 号 | P263: 業 務 概 要 | Y263: 支 出 額 （百万円） | AC263: 契約方式 | AH263: 入札者数 （応募者数） | AL263: 落札率 | AP263: 一者応札・一者応募又は 競争性のない随意契約となった 理由及び改善策 （支出額10億円以上）
A264: 1 | B264: 1 | C264: (株)大塚商会 | J264: 1010001012983 | P264: 判定検索データベースの保守料等 | Y264: 0.4 | AC264: 随意契約 （少額）
A265: 2 | B265: 1
A266: 3 | B266: 1
A267: 4 | B267: 1
A268: 5 | B268: 1
A269: 6 | B269: 1
A270: 7 | B270: 1
A271: 8 | B271: 1
A272: 9 | B272: 1
A273: 10 | B273: 1
B275: E.
C276: 支 出 先 | J276: 法 人 番 号 | P276: 業 務 概 要 | Y276: 支 出 額 （百万円） | AC276: 契約方式 | AH276: 入札者数 （応募者数） | AL276: 落札率 | AP276: 一者応札・一者応募又は 競争性のない随意契約となった 理由及び改善策 （支出額10億円以上）
A277: 1 | B277: 1
A278: 2 | B278: 1
A279: 3 | B279: 1
... 56 more rows

Sheet 入力規則等 (hidden)
A1: 主要施策名 | B1: 該当の有無 | F1: 会計区分 | G1: 該当の有無 | K1: 主要経費名 | L1: 該当の有無 | P1: 実施方法 | Q1: 該当の有無 | U1: 事業番号 | W1: 開始年度 | Y1: 終了（予定）年度 | AA1: 行政事業レビュー推進チームの所見 | AC1: 所見を踏まえた改善点/概算要求における反映状況 | AE1: 契約方式 | AG1: 一体改革分野 | AI1: ブロック名
A2: 医療分野の研究開発関連 | C2: =IF(B2="","",A2) ->  | D2: =IF(C2="","",IF(D1<>"",CONCATENATE(D1,"、",C2),C2)) ->  | F2: 一般会計 | H2: =IF(G2="","",F2) ->  | I2: =IF(H2="","",IF(I1<>"",CONCATENATE(I1,"、",H2),H2)) ->  | K2: 社会保障 | M2: =IF(L2="","",K2) ->  | N2: =IF(M2="","",IF(N1<>"",CONCATENATE(N1,"、",M2),M2)) ->  | P2: 直接実施 | R2: =IF(Q2="","",P2) ->  | S2: =IF(R2="","",IF(S1<>"",CONCATENATE(S1,"、",R2),R2)) ->  | Y2: 平成２５年度 | AA2: 廃止 | AC2: 廃止 | AE2: 一般競争契約 （最低価格） | AG2: 社会保障 | AI2: A
A3: 宇宙開発利用 | C3: =IF(B3="","",A3) ->  | D3: =IF(C3="",D2,IF(D2<>"",CONCATENATE(D2,"、",C3),C3)) ->  | F3: 交付税及び譲与税配付金特別会計 | H3: =IF(G3="","",F3) ->  | I3: =IF(H3="",I2,IF(I2<>"",CONCATENATE(I2,"、",H3),H3)) ->  | K3: 文教及び科学振興 | M3: =IF(L3="","",K3) ->  | N3: =IF(M3="",N2,IF(N2<>"",CONCATENATE(N2,"、",M3),M3)) ->  | P3: 委託・請負 | R3: =IF(Q3="","",P3) ->  | S3: =IF(R3="",S2,IF(S2<>"",CONCATENATE(S2,"、",R3),R3)) ->  | U3: 新28 | W3: 昭和元年度以前 | Y3: 平成２６年度 | AA3: 事業全体の 抜本的な改善 | AC3: 縮減 | AE3: 一般競争契約 （総合評価） | AG3: 社会資本整備等 | AI3: =CHAR(CODE(AI2)+1) -> B
A4: 沖縄振興 | D4: =IF(C4="",D3,IF(D3<>"",CONCATENATE(D3,"、",C4),C4)) ->  | F4: 地震再保険特別会計 | I4: =IF(H4="",I3,IF(I3<>"",CONCATENATE(I3,"、",H4),H4)) ->  | K4: 恩給関係 | N4: =IF(M4="",N3,IF(N3<>"",CONCATENATE(N3,"、",M4),M4)) ->  | P4: 補助 | U4: 新29 | W4: 昭和２年度 | Y4: 平成２７年度 | AA4: 事業内容の 一部改善 | AC4: 執行等改善 | AE4: 指名競争契約 （最低価格） | AG4: 制度・地方行財政 | AI4: =CHAR(CODE(AI3)+1) -> C
A5: 海洋政策 | D5: =IF(C5="",D4,IF(D4<>"",CONCATENATE(D4,"、",C5),C5)) ->  | F5: 国債整理基金特別会計 | K5: 防衛関係 | P5: 負担 | W5: 昭和３年度 | Y5: 平成２８年度 | AA5: 終了予定 | AC5: 予定通り終了 | AE5: 指名競争契約 （総合評価） | AG5: 文教・科学技術 外交・安全保障・防衛等 | AI5: D
A6: 科学技術・イノベーション | D6: =IF(C6="",D5,IF(D5<>"",CONCATENATE(D5,"、",C6),C6)) ->  | F6: 外国為替資金特別会計 | K6: 公共事業 | P6: 交付 | W6: 昭和４年度 | Y6: 平成２９年度 | AA6: 現状通り | AC6: 現状通り | AE6: 随意契約 （企画競争） | AI6: E
A7: 観光立国 | F7: 財政投融資特別会計財政融資資金勘定 | K7: 経済協力 | P7: 貸付 | W7: 昭和５年度 | Y7: 平成３０年度 | AE7: 随意契約 （公募） | AI7: F
A8: 交通安全対策 | F8: 財政投融資特別会計投資勘定 | K8: 中小企業対策 | P8: その他 | W8: 昭和６年度 | Y8: 平成３１年度 | AE8: 随意契約 （少額） | AI8: G
A9: 高齢社会対策 | F9: 財政投融資特別会計特定国有財産整備勘定 | K9: エネルギー対策 | W9: 昭和７年度 | Y9: 平成３２年度 | AE9: 随意契約 （その他） | AI9: H
A10: 国土強靭化施策 | F10: エネルギー対策特別会計エネルギー需給勘定 | K10: 食糧安定供給関係 | P10: =S8 ->  | W10: 昭和８年度 | Y10: 平成３３年度 | AE10: 国庫債務 負担行為等 | AI10: I
A11: 子ども・若者育成支援 | F11: エネルギー対策特別会計電源開発促進勘定 | K11: その他の事項経費 | W11: 昭和９年度 | Y11: 平成３４年度 | AE11: （諸謝金） | AI11: J
A12: 自殺対策 | F12: エネルギー対策特別会計原子力損害賠償支援勘定 | W12: 昭和１０年度 | Y12: 平成３５年度 | AE12: その他 | AI12: K
A13: 障害者施策 | F13: 労働保険特別会計労災勘定 | K13: =N11 ->  | W13: 昭和１１年度 | Y13: 平成３６年度 | AI13: L
A14: 少子化社会対策 | F14: 労働保険特別会計雇用勘定 | W14: 昭和１２年度 | Y14: 平成３７年度 | AI14: M
A15: 食育推進 | F15: 労働保険特別会計徴収勘定 | W15: 昭和１３年度 | Y15: 平成３８年度 | AI15: N
A16: 男女共同参画 | F16: 年金特別会計基礎年金勘定 | W16: 昭和１４年度 | Y16: 平成３９年度 | AI16: O
A17: 地球温暖化対策 | F17: 年金特別会計国民年金勘定 | W17: 昭和１５年度 | Y17: 平成４０年度 | AI17: P
A18: 犯罪被害者等施策 | F18: 年金特別会計厚生年金勘定 | W18: 昭和１６年度 | Y18: 平成４１年度 | AI18: Q
A19: ＩＴ戦略 | F19: 年金特別会計健康勘定 | W19: 昭和１７年度 | Y19: 平成４２年度 | AI19: R
A20: クールジャパン | F20: 年金特別会計子ども・子育て支援勘定 | W20: 昭和１８年度 | Y20: 平成４３年度 | AI20: S
A21: 知的財産 | F21: 年金特別会計業務勘定 | W21: 昭和１９年度 | Y21: 平成４４年度 | AI21: T
A22: 地方創生 | F22: 食料安定供給特別会計農業経営安定勘定 | W22: 昭和２０年度 | Y22: 平成４５年度 | AI22: U
A23: ＯＤＡ | F23: 食料安定供給特別会計食糧管理勘定 | W23: 昭和２１年度 | Y23: 平成４６年度 | AI23: V
A24: 2020年東京オリパラ | F24: 食料安定供給特別会計農業共済再保険勘定 | W24: 昭和２２年度 | Y24: 平成４７年度 | AI24: =CHAR(CODE(AI23)+1) -> W
F25: 食料安定供給特別会計漁船再保険勘定 | W25: 昭和２３年度 | Y25: 平成４８年度 | AI25: X
A26: =D24 ->  | F26: 食料安定供給特別会計漁業共済保険勘定 | W26: 昭和２４年度 | Y26: 平成４９年度 | AI26: Y
F27: 食料安定供給特別会計業務勘定 | W27: 昭和２５年度 | Y27: 平成５０年度 | AI27: =CHAR(CODE(AI26)+1) -> Z
F28: 食料安定供給特別会計国営土地改良事業勘定 | W28: 昭和２６年度 | Y28: 平成５１年度 | AI28: a
F29: 国有林野事業債務管理特別会計 | W29: 昭和２７年度 | Y29: 平成５２年度 | AI29: b
F30: 貿易再保険特別会計 | W30: 昭和２８年度 | Y30: 平成５３年度 | AI30: c
F31: 特許特別会計 | W31: 昭和２９年度 | Y31: 平成５４年度 | AI31: d
F32: 自動車安全特別会計保障勘定 | W32: 昭和３０年度 | Y32: 平成５５年度 | AI32: e
F33: 自動車安全特別会計自動車検査登録勘定 | W33: 昭和３１年度 | Y33: 平成５５年度以降 | AI33: f
F34: 自動車安全特別会計自動車事故対策勘定 | W34: 昭和３２年度 | Y34: 終了予定なし | AI34: g
F35: 自動車安全特別会計空港整備勘定 | W35: 昭和３３年度 | AI35: h
F36: 東日本大震災復興特別会計 | W36: 昭和３４年度 | AI36: i
W37: 昭和３５年度 | AI37: j
W38: 昭和３６年度 | AI38: k
F39: =I37 ->  | W39: 昭和３７年度 | AI39: l
W40: 昭和３８年度 | AI40: m
W41: 昭和３９年度 | AI41: n
W42: 昭和４０年度 | AI42: o
W43: 昭和４１年度 | AI43: p
W44: 昭和４２年度 | AI44: q
W45: 昭和４３年度 | AI45: r
W46: 昭和４４年度 | AI46: s
W47: 昭和４５年度 | AI47: t
W48: 昭和４６年度 | AI48: u
W49: 昭和４７年度 | AI49: v
W50: 昭和４８年度
W51: 昭和４９年度
W52: 昭和５０年度
W53: 昭和５１年度
W54: 昭和５２年度
W55: 昭和５３年度
W56: 昭和５４年度
W57: 昭和５５年度
W58: 昭和５６年度
W59: 昭和５７年度
W60: 昭和５８年度
W61: 昭和５９年度
W62: 昭和６０年度
W63: 昭和６１年度
W64: 昭和６２年度
W65: 昭和６３年度
W66: 平成元年度
W67: 平成２年度
W68: 平成３年度
W69: 平成４年度
W70: 平成５年度
W71: 平成６年度
W72: 平成７年度
W73: 平成８年度
W74: 平成９年度
W75: 平成１０年度
W76: 平成１１年度
W77: 平成１２年度
W78: 平成１３年度
W79: 平成１４年度
W80: 平成１５年度
W81: 平成１６年度
W82: 平成１７年度
W83: 平成１８年度
W84: 平成１９年度
W85: 平成２０年度
W86: 平成２１年度
W87: 平成２２年度
W88: 平成２３年度
W89: 平成２４年度
W90: 平成２５年度
W91: 平成２６年度
W92: 平成２７年度
W93: 平成２８年度
W94: 平成２９年度
W95: 平成３０年度
W122: 新
